bitfinex-derivatives/quotes_SOLF0:USTF0_20250625
["timestamp","ask_amount","ask_price","bid_price","bid_amount"]
[1750875233032,6.9448,143.92,143.9,6.9455]
[1750875235530,6.9448,143.92,143.9,6.9457]
[1750875237344,6.9452,143.91,143.89,11.36966719]
[1750875238243,6.945,143.92,143.9,6.9457]
[1750875238642,42.33936719,143.96,143.89,4.42366719]
[1750875238845,18.38943375,143.95,143.89,11.36946719]
[1750875239046,18.38943375,143.94,143.89,11.36946719]
[1750875239246,12.42827092,143.93,143.89,11.36946719]
[1750875239448,14.7208922,143.92,143.89,11.36946719]
[1750875239648,6.945,143.92,143.9,6.9457]
[1750875240247,6.9453,143.91,143.89,11.36966719]
[1750875240845,42.33936719,143.96,143.87,4.42366719]
[1750875240846,6.945,143.92,143.87,4.42366719]
[1750875241146,5.23044405,143.91,143.87,4.42366719]
[1750875241348,6.945,143.92,143.9,6.9456]
[1750875241646,5.95738247,143.94,143.89,4.42366719]
[1750875241845,4.42407897,143.92,143.84,11.37247897]
[1750875242038,4.42407897,143.9,143.82,151.63340573]
[1750875242245,4.42645988,143.88,143.82,147.20932676]
[1750875242448,53.8805299,143.87,143.8,6.9503]
[1750875242644,22.78663845,143.86,143.79,11.53545988]
[1750875242841,4.42645988,143.84,143.77,39.92645988]
[1750875243041,47.91430057,143.83,143.77,39.92645988]
[1750875243245,6.9513,143.79,143.77,4.42645988]
[1750875243545,6.9513,143.79,143.75,6.84785988]
[1750875243941,6.9516,143.78,143.75,6.84785988]
[1750875244246,14.99253579,143.82,143.75,2.4214]
[1750875244445,6.953,143.75,143.74,4.42645988]
[1750875244752,35.5,143.79,143.73,4.7847]
[1750875245146,6.9535,143.74,143.73,4.7847]
[1750875245543,4.42645988,143.78,143.71,35.5]
[1750875245744,12.15395993,143.78,143.71,35.5]
[1750875246353,6.9544,143.72,143.71,35.5]
[1750875248854,39.94645988,143.83,143.71,42.46]
[1750875249144,39.94645988,143.83,143.77,6.9519]
[1750875249145,6.9498,143.82,143.77,6.9519]
[1750875249347,35.52,143.83,143.77,4.42645988]
[1750875250651,6.9497,143.82,143.77,4.42645988]
[1750875250864,35.52,143.83,143.77,4.42645988]
[1750875251052,42.4692,143.83,143.79,6.9507]
[1750875251248,37.8706,143.86,143.79,4.42645988]
[1750875251550,6.9484,143.85,143.82,6.9496]
[1750875252459,6.9484,143.85,143.81,4.42645988]
[1750875252460,35.48,143.86,143.81,11.37635988]
[1750875253056,6.9484,143.85,143.81,11.37635988]
[1750875255557,6.9488,143.84,143.81,6.9499]
[1750875255757,6.9488,143.84,143.8,6.9503]
[1750875256160,6.9488,143.84,143.79,39.90645988]
[1750875256656,6.9488,143.84,143.81,6.95]
[1750875258463,6.9488,143.84,143.8,6.9504]
[1750875258660,6.9488,143.84,143.79,39.90645988]
[1750875259963,6.9488,143.84,143.81,6.9499]
[1750875263971,6.9488,143.84,143.79,39.90645988]
[1750875264374,6.9488,143.84,143.81,6.9498]
[1750875267069,6.9488,143.84,143.82,6.9496]
[1750875267774,35.48,143.86,143.82,6.9496]
[1750875268166,35.48,143.86,143.81,6.9499]
[1750875268363,6.9489,143.84,143.81,6.9499]
[1750875268970,6.9484,143.85,143.82,6.9495]
[1750875269371,35.48,143.86,143.82,6.9495]
[1750875269571,35.48,143.86,143.79,39.90645988]
[1750875270175,6.9489,143.84,143.81,6.9498]
[1750875272173,5.15061991,143.87,143.8,4.42645988]
[1750875272366,640.22645988,143.89,143.82,4.42645988]
[1750875272875,6.948,143.86,143.83,6.9489]
[1750875273670,4.42645988,143.85,143.77,35.46]
[1750875273866,4.42645988,143.85,143.77,39.88645988]
[1750875274064,39.88645988,143.85,143.77,39.88645988]
[1750875274265,6.95,143.82,143.79,6.9508]
[1750875277472,39.88645988,143.85,143.77,35.46]
[1750875277680,4.42645988,143.83,143.77,35.46]
[1750875278377,6.9503,143.81,143.77,35.46]
[1750875278878,6.9503,143.81,143.78,6.9511]
[1750875280666,4.42645988,143.83,143.77,42.4118]
[1750875280875,9.6154781,143.83,143.77,35.46]
[1750875281668,6.9509,143.8,143.77,42.4118]
[1750875281878,9.61427601,143.83,143.77,42.4118]
[1750875282469,6.94069641,143.83,143.77,6.9518]
[1750875282670,4.42645988,143.83,143.77,6.9518]
[1750875282969,12.12894871,143.83,143.77,6.9518]
[1750875283170,4.42645988,143.83,143.77,6.9518]
[1750875283370,12.12894871,143.83,143.77,6.9518]
[1750875283568,6.9508,143.8,143.77,6.9518]
[1750875284082,6.9504,143.81,143.78,6.9515]
[1750875286678,6.9504,143.81,143.76,11.65735988]
[1750875287485,6.9504,143.81,143.78,6.9513]
[1750875288184,6.9504,143.81,143.79,6.951]
[1750875288684,6.9504,143.81,143.76,11.65735988]
[1750875289377,6.9504,143.81,143.78,6.9513]
[1750875293186,10.29984824,143.83,143.77,6.9519]
[1750875293384,12.38285122,143.82,143.77,6.9519]
[1750875293583,7.73361044,143.81,143.76,6.78825988]
[1750875293781,6.9499,143.82,143.8,6.9505]
[1750875293991,7.74258946,143.81,143.8,6.9505]
[1750875295180,6.9493,143.83,143.81,6.95]
[1750875295487,7.74399372,143.82,143.81,6.95]
[1750875295985,7.7441725,143.82,143.81,6.95]
[1750875297890,7.7441725,143.82,143.8,6.9503]
[1750875298089,6.9493,143.83,143.8,6.9503]
[1750875298286,7.74383181,143.82,143.8,6.9503]
[1750875298486,6.9493,143.83,143.8,6.9503]
[1750875298694,7.7435741,143.82,143.8,6.9503]
[1750875298992,6.9497,143.82,143.79,6.9508]
[1750875299886,6.9497,143.82,143.8,6.9505]
[1750875300478,6.9497,143.82,143.76,6.78825988]
[1750875300679,6.9494,143.83,143.76,6.78825988]
[1750875300883,7.74644691,143.82,143.76,6.78825988]
[1750875301084,6.9494,143.83,143.8,6.9503]
[1750875301290,7.74598384,143.82,143.8,6.9503]
[1750875301595,6.9494,143.83,143.8,6.9503]
[1750875301794,7.74961686,143.82,143.8,6.9503]
[1750875301992,6.9496,143.82,143.8,6.9503]
[1750875302996,6.9496,143.82,143.79,6.9508]
[1750875303592,6.9496,143.82,143.8,6.9505]
[1750875303793,6.9496,143.82,143.76,6.78825988]
[1750875304094,6.9496,143.82,143.79,6.9507]
[1750875304499,6.9496,143.82,143.76,6.78825988]
[1750875304898,6.9502,143.81,143.76,6.78825988]
[1750875305098,4.66327581,143.83,143.76,6.78825988]
[1750875305395,7.73644106,143.82,143.79,6.9507]
[1750875305595,6.9499,143.82,143.79,6.9507]
[1750875306498,6.9499,143.82,143.8,6.9504]
[1750875306696,4.66187746,143.83,143.78,4.42645988]
[1750875306897,7.73348866,143.82,143.79,6.9508]
[1750875307105,39.86645988,143.85,143.78,4.42645988]
[1750875307301,6.9495,143.83,143.78,4.42645988]
[1750875307506,7.73407843,143.82,143.78,4.42645988]
[1750875307802,6.9495,143.83,143.8,6.9502]
[1750875308098,14.68351773,143.82,143.8,6.9502]
[1750875308293,6.9497,143.82,143.8,6.9502]
[1750875309391,6.9494,143.83,143.8,6.9502]
[1750875309593,7.73635662,143.82,143.81,6.95]
[1750875310001,7.73649184,143.82,143.81,6.95]
[1750875310296,35.42,143.88,143.83,6.9491]
[1750875310495,14.97469415,143.87,143.8,4.42690036]
[1750875310797,4.66541555,143.86,143.83,6.949]
[1750875310995,35.42,143.88,143.83,6.949]
[1750875311194,10.54921248,143.87,143.82,4.42690036]
[1750875311394,6.9474,143.87,143.84,6.9483]
[1750875311589,35.42,143.88,143.84,6.9483]
[1750875311791,4.66619613,143.87,143.84,6.9483]
[1750875311991,6.9479,143.86,143.84,6.9483]
[1750875313997,6.9473,143.87,143.84,6.9483]
[1750875316099,35.42,143.88,143.85,6.9481]
[1750875316701,6.9469,143.88,143.85,6.9481]
[1750875317197,6.9472,143.87,143.85,6.9481]
[1750875318599,6.9472,143.87,143.84,11.37530036]
[1750875319802,4.42690036,143.89,143.83,6.949]
[1750875320001,4.62912681,143.88,143.83,6.949]
[1750875320197,10.30487846,143.89,143.83,6.949]
[1750875320399,4.62915842,143.88,143.83,6.949]
[1750875320600,6.9484,143.85,143.82,4.8038]
[1750875322302,6.9484,143.85,143.83,6.9491]
[1750875322496,6.9479,143.86,143.83,6.9491]
[1750875323204,6.9479,143.86,143.82,9.23070036]
[1750875324099,6.9479,143.86,143.84,6.9484]
[1750875325602,6.9483,143.85,143.83,6.9488]
[1750875325801,12.05076994,143.87,143.81,35.42]
[1750875325999,6.9496,143.82,143.79,4.42690036]
[1750875326198,39.82690036,143.83,143.75,4.42690036]
[1750875327098,6.9503,143.81,143.75,4.42690036]
[1750875327298,39.82690036,143.83,143.75,4.42690036]
[1750875327795,6.9506,143.8,143.77,6.9517]
[1750875329909,6.9514,143.79,143.76,6.9521]
[1750875331701,6.9514,143.79,143.77,6.9519]
[1750875331906,6.9508,143.8,143.77,6.9519]
[1750875334014,6.9511,143.79,143.77,6.9519]
[1750875334405,6.9511,143.79,143.75,4.42690036]
[1750875334603,4.42690036,143.81,143.74,42.6149]
[1750875334804,9.50926793,143.81,143.74,42.6149]
[1750875335007,4.42690036,143.81,143.74,42.6149]
[1750875335409,9.50836797,143.81,143.74,42.6149]
[1750875335611,6.9514,143.79,143.76,6.9524]
[1750875336708,35.4,143.83,143.74,42.6149]
[1750875336709,6.9508,143.8,143.77,6.952]
[1750875337724,6.951,143.79,143.77,6.952]
[1750875338020,5.08124413,143.82,143.77,6.952]
[1750875338313,6.9508,143.8,143.77,6.952]
[1750875339505,6.9511,143.79,143.76,6.9523]
[1750875341308,6.9511,143.79,143.77,6.952]
[1750875343015,6.9508,143.8,143.77,6.952]
[1750875344113,6.9511,143.79,143.77,6.952]
[1750875344709,6.9511,143.79,143.76,6.9522]
[1750875345311,6.9516,143.78,143.76,6.9522]
[1750875345511,6.9516,143.78,143.75,4.42690036]
[1750875345711,4.42690036,143.81,143.75,4.42690036]
[1750875345914,6.9515,143.79,143.76,6.9522]
[1750875346419,6.9508,143.8,143.75,4.42690036]
[1750875346719,39.82690036,143.83,143.75,4.42690036]
[1750875346919,6.9504,143.81,143.78,6.9511]
[1750875348817,6.9504,143.81,143.75,4.42690036]
[1750875349221,6.9504,143.81,143.78,6.9512]
[1750875349621,6.9506,143.8,143.78,6.9512]
[1750875350420,4.42690036,143.81,143.75,4.42690036]
[1750875350619,4.42690036,143.81,143.74,42.6149]
[1750875350814,4.42690036,143.81,143.75,6.9527]
[1750875351015,4.42690036,143.79,143.72,4.42690036]
[1750875351425,6.9528,143.76,143.72,4.42690036]
[1750875351927,6.9528,143.76,143.73,6.9536]
[1750875352127,6.9523,143.77,143.72,4.42690036]
[1750875352921,35.38,143.79,143.74,4.42690036]
[1750875353219,35.38,143.82,143.74,4.42690036]
[1750875353821,6.9508,143.8,143.78,6.9511]
[1750875354428,6.9503,143.81,143.78,6.9511]
[1750875355229,6.9503,143.81,143.79,6.9509]
[1750875355526,4.42690036,143.81,143.75,35.38]
[1750875355826,4.42690036,143.81,143.77,6.952]
[1750875356024,37.8361165,143.82,143.75,39.80690036]
[1750875356325,35.38,143.82,143.78,6.9512]
[1750875356722,6.9504,143.81,143.78,6.9512]
[1750875363228,4.42690036,143.81,143.75,35.38]
[1750875363822,6.9519,143.78,143.75,42.3328]
[1750875364530,4.42690036,143.79,143.73,4.42690036]
[1750875364739,35.38,143.78,143.72,35.38]
[1750875365233,6.9533,143.75,143.72,42.3342]
[1750875366527,6.9533,143.75,143.73,6.9539]
[1750875370136,6.9537,143.74,143.7,2.4859]
[1750875370338,6.9537,143.74,143.69,42.22070036]
[1750875370339,7.52704379,143.76,143.69,42.22070036]
[1750875370541,4.42690036,143.75,143.71,6.9546]
[1750875371041,6.9538,143.74,143.69,42.22070036]
[1750875371844,6.9538,143.74,143.72,6.9542]
[1750875372342,35.38,143.78,143.71,4.42690036]
[1750875372533,7.52308521,143.77,143.71,4.42690036]
[1750875372735,6.9512,143.79,143.73,4.42690036]
[1750875372941,4.59424959,143.8,143.75,4.42690036]
[1750875373241,254.4181601,143.84,143.77,4.42690036]
[1750875373442,17.96733357,143.83,143.77,4.42690036]
[1750875373645,12.1188072,143.82,143.78,6.9511]
[1750875373943,2.44918714,143.81,143.78,6.9511]
[1750875374139,6.9503,143.81,143.78,6.9511]
[1750875374346,6.9503,143.81,143.79,6.951]
[1750875375257,6.9503,143.81,143.78,6.9512]
[1750875375944,6.9503,143.81,143.79,6.9509]
[1750875376852,6.9503,143.81,143.78,6.9512]
[1750875377046,4.42690036,143.82,143.75,4.42690036]
[1750875377242,12.10805141,143.81,143.75,4.42690036]
[1750875377439,7.51029188,143.8,143.74,4.5874]
[1750875377651,6.9514,143.79,143.74,4.5874]
[1750875377847,6.9514,143.79,143.76,6.9524]
[1750875380347,6.9516,143.78,143.76,6.9524]
[1750875384960,4.42690036,143.82,143.76,6.9524]
[1750875385163,12.17929029,143.81,143.76,6.9524]
[1750875385464,6.9513,143.79,143.76,6.9524]
[1750875387456,6.9515,143.78,143.76,6.9524]
[1750875389760,6.9513,143.79,143.76,6.9524]
[1750875389959,35.34,143.8,143.76,6.9524]
[1750875390866,6.9511,143.79,143.76,6.9524]
[1750875391066,35.34,143.8,143.76,6.9524]
[1750875391474,4.42690036,143.78,143.73,2.2773]
[1750875391677,2.45942756,143.77,143.71,4.42690036]
[1750875391969,6.9517,143.78,143.75,6.9525]
[1750875394071,6.9517,143.78,143.73,4.42690036]
[1750875394072,39.76690036,143.8,143.73,4.42690036]
[1750875394274,4.42690036,143.78,143.71,4.42690036]
[1750875394574,6.9532,143.75,143.72,6.9541]
[1750875395275,6.9527,143.76,143.73,6.9539]
[1750875395876,6.953,143.75,143.73,6.9539]
[1750875396977,6.9536,143.74,143.72,6.9542]
[1750875397179,6.9536,143.74,143.7,35.34]
[1750875397376,4.42690036,143.76,143.71,6.9544]
[1750875397678,6.9537,143.74,143.71,6.9544]
[1750875397878,39.76690036,143.76,143.71,6.9544]
[1750875398683,6.9538,143.74,143.71,6.9544]
[1750875399380,6.9542,143.73,143.7,6.9552]
[1750875399577,6.9542,143.73,143.69,6.90930036]
[1750875399778,6.9542,143.73,143.7,6.9553]
[1750875400486,6.9545,143.72,143.7,6.9553]
[1750875400879,6.954,143.73,143.71,6.9549]
[1750875401381,39.76690036,143.76,143.7,6.9551]
[1750875401679,12.14647299,143.75,143.68,4.716]
[1750875401881,7.53811598,143.74,143.68,4.716]
[1750875402069,4.60800578,143.75,143.68,4.716]
[1750875402273,7.53853044,143.74,143.68,4.716]
[1750875402474,7.53853044,143.74,143.67,39.76690036]
[1750875402475,4.42690036,143.74,143.69,6.9557]
[1750875402773,9.03490084,143.74,143.67,35.34]
[1750875402976,6.9552,143.71,143.68,6.9561]
[1750875403785,6.9546,143.72,143.69,6.9558]
[1750875403985,4.42690036,143.74,143.69,6.9558]
[1750875404485,6.9547,143.72,143.69,6.9558]
[1750875405985,6.9542,143.73,143.7,6.9553]
[1750875407285,9.49034205,143.74,143.67,39.76690036]
[1750875407781,6.9547,143.72,143.69,6.9556]
[1750875408186,9.49034205,143.74,143.67,39.76690036]
[1750875408389,4.42690036,143.72,143.68,6.9561]
[1750875408781,6.9567,143.68,143.65,6.9577]
[1750875409086,4.42690036,143.7,143.64,7.084]
[1750875409288,6.9571,143.67,143.64,7.084]
[1750875409593,6.9571,143.67,143.64,14.042]
[1750875410277,6.9576,143.66,143.64,7.084]
[1750875411475,6.9576,143.66,143.64,14.0422]
[1750875413387,6.9571,143.67,143.64,14.0422]
[1750875414994,6.9573,143.66,143.64,7.084]
[1750875420097,6.9571,143.67,143.64,14.0422]
[1750875420290,35.34,143.72,143.65,4.42690036]
[1750875420794,6.9562,143.69,143.65,11.38440036]
[1750875420987,6.9562,143.69,143.65,4.42690036]
[1750875421384,6.9562,143.69,143.66,6.9571]
[1750875425202,4.42690036,143.71,143.64,7.084]
[1750875425395,4.42690036,143.69,143.64,4.8175]
[1750875425901,6.9567,143.68,143.65,6.9578]
[1750875426698,6.9568,143.67,143.64,11.7755]
[1750875427101,6.9566,143.68,143.65,6.9577]
[1750875427297,7.1325,143.75,143.65,4.42690036]
[1750875427495,614.6826,143.79,143.64,4.8175]
[1750875427496,55.11165385,143.78,143.71,4.42690036]
[1750875427707,6.9533,143.75,143.72,6.9542]
[1750875428200,42.2917,143.78,143.74,6.953]
[1750875428506,35.34,143.81,143.75,4.42690036]
[1750875429400,6.9515,143.78,143.75,4.42690036]
[1750875429998,35.34,143.81,143.72,147.1406]
[1750875430197,35.34,143.81,143.72,144.61320036]
[1750875430198,4.42690036,143.78,143.72,144.61320036]
[1750875430391,35.34,143.77,143.71,2.2651]
[1750875430597,4.42690036,143.76,143.69,35.34]
[1750875430900,4.42690036,143.74,143.69,35.34]
[1750875431794,4.42690036,143.74,143.69,42.2957]
[1750875432603,6.9541,143.73,143.69,42.2957]
[1750875432804,4.42690036,143.74,143.69,42.2957]
[1750875433398,6.9541,143.73,143.69,42.2957]
[1750875433708,4.42690036,143.74,143.69,42.2957]
[1750875433904,6.9542,143.73,143.69,42.2957]
[1750875434092,6.9542,143.73,143.69,35.34]
[1750875434698,6.9542,143.73,143.69,42.2955]
[1750875435604,4.42690036,143.76,143.69,35.34]
[1750875436007,6.9541,143.73,143.69,42.2956]
[1750875437603,35.34,143.77,143.69,39.76690036]
[1750875437910,35.34,143.77,143.71,4.42690036]
[1750875438308,6.9527,143.76,143.72,6.9539]
[1750875438809,6.9527,143.76,143.71,4.42690036]
[1750875439510,6.9527,143.76,143.73,6.9538]
[1750875446012,6.9521,143.77,143.73,4.42690036]
[1750875446716,6.9521,143.77,143.74,6.9531]
[1750875449414,6.9521,143.77,143.75,6.9528]
[1750875449615,6.9516,143.78,143.75,6.9528]
[1750875449815,35.32,143.8,143.74,4.42690036]
[1750875450117,4.42690036,143.82,143.77,6.9519]
[1750875450619,4.42690036,143.8,143.73,35.3]
[1750875450923,6.9521,143.77,143.73,35.3]
[1750875451122,6.9521,143.77,143.74,6.9531]
[1750875451308,4.42690036,143.8,143.74,4.42690036]
[1750875451711,6.9514,143.78,143.75,6.9526]
[1750875452318,6.9519,143.77,143.74,11.38000036]
[1750875452518,6.9519,143.77,143.74,4.42690036]
[1750875453127,4.42690036,143.8,143.73,35.3]
[1750875453428,4.42690036,143.76,143.71,2.3951]
[1750875453930,6.9536,143.74,143.71,9.3497]
[1750875455821,6.9536,143.74,143.72,6.9543]
[1750875456322,6.9531,143.75,143.72,6.9543]
[1750875457324,6.9534,143.74,143.72,6.9543]
[1750875457818,6.9534,143.74,143.71,9.3497]
[1750875458021,6.9534,143.74,143.71,2.3951]
[1750875458822,6.9534,143.74,143.71,9.3495]
[1750875459224,6.9534,143.74,143.71,2.3951]
[1750875459720,6.9534,143.74,143.72,6.9543]
[1750875459917,4.42690036,143.76,143.7,4.7615]
[1750875460125,4.42690036,143.76,143.68,35.3]
[1750875460318,4.42690036,143.76,143.69,6.9555]
[1750875460523,6.9547,143.72,143.69,6.9555]
[1750875461029,4.42690036,143.74,143.69,6.9555]
[1750875462228,6.9549,143.71,143.68,42.2561]
[1750875462726,4.42690036,143.74,143.68,35.3]
[1750875463130,6.9546,143.72,143.69,6.9555]
[1750875464826,6.9549,143.71,143.68,42.256]
[1750875465226,6.9549,143.71,143.68,35.3]
[1750875466136,6.9554,143.7,143.68,35.3]
[1750875466330,4.42690036,143.74,143.68,35.3]
[1750875466834,4.42690036,143.74,143.69,6.9557]
[1750875467340,6.9547,143.72,143.7,6.9551]
[1750875468529,6.9547,143.72,143.69,6.9555]
[1750875472430,6.9547,143.72,143.7,6.9552]
[1750875474132,6.9541,143.73,143.71,6.9547]
[1750875474836,6.9536,143.74,143.71,6.9547]
[1750875475440,6.9536,143.74,143.72,6.9543]
[1750875475638,36.27,143.75,143.68,39.72690036]
[1750875475639,0.97,143.75,143.7,4.42690036]
[1750875475934,0.97,143.75,143.74,6.9534]
[1750875476334,7.1218,143.78,143.73,35.28]
[1750875476547,7.1218,143.78,143.76,6.9524]
[1750875476730,4.42690036,143.77,143.73,35.28]
[1750875477043,4.42690036,143.77,143.72,6.954]
[1750875477840,6.9531,143.75,143.72,6.954]
[1750875478845,6.9526,143.76,143.73,6.9537]
[1750875479745,6.953,143.75,143.73,6.9537]
[1750875481737,6.9533,143.75,143.72,6.9542]
[1750875482242,6.9533,143.75,143.73,6.9538]
[1750875483133,6.9533,143.75,143.72,6.9541]
[1750875483335,6.9535,143.74,143.71,2.4585]
[1750875483537,4.60833242,143.76,143.7,35.28]
[1750875483832,12.00069326,143.75,143.7,42.2351]
[1750875484029,4.42690036,143.75,143.7,42.2351]
[1750875484438,6.9541,143.73,143.7,42.2351]
[1750875485131,6.9543,143.72,143.7,42.2351]
[1750875485332,7.5755018,143.74,143.69,6.9555]
[1750875485536,6.9547,143.72,143.69,6.9555]
[1750875485738,5.11336687,143.74,143.67,42.3531]
[1750875485943,12.00252584,143.73,143.67,42.3531]
[1750875486235,6.9556,143.7,143.67,42.3531]
[1750875486443,4.42690036,143.73,143.64,186.36062444]
[1750875486444,4.42690036,143.71,143.64,186.36062444]
[1750875486942,4.42690036,143.71,143.65,6.9575]
[1750875487744,35.28,143.73,143.64,186.36062444]
[1750875487938,35.28,143.73,143.65,4.42690036]
[1750875487939,6.9554,143.7,143.65,4.42690036]
[1750875488445,6.9554,143.7,143.67,6.9564]
[1750875488840,2.45755671,143.72,143.65,4.42690036]
[1750875489042,4.42690036,143.69,143.64,35.28]
[1750875489340,11.55835891,143.7,143.64,35.28]
[1750875489538,9.03064848,143.71,143.64,35.28]
[1750875489738,4.42690036,143.71,143.64,35.28]
[1750875489940,11.38200036,143.71,143.68,6.956]
[1750875490243,4.60384484,143.72,143.65,4.42690036]
[1750875490443,6.9546,143.72,143.69,6.9555]
[1750875491344,6.9546,143.72,143.7,6.9553]
[1750875491549,6.9546,143.72,143.67,4.42690036]
[1750875491945,6.9546,143.72,143.69,6.9556]
[1750875493648,46.66100036,143.73,143.7,6.9553]
[1750875494142,5.08725694,143.74,143.67,4.42690036]
[1750875494348,4.42690036,143.75,143.68,37.5034]
[1750875494543,5.08726419,143.74,143.68,37.5034]
[1750875494849,4.42690036,143.75,143.7,6.9548]
[1750875495048,5.08798758,143.74,143.7,6.9548]
[1750875495247,6.9538,143.73,143.7,6.9548]
[1750875495542,4.58301399,143.74,143.68,37.5034]
[1750875495751,5.0894433,143.73,143.68,37.5034]
[1750875495952,6.9548,143.72,143.69,6.9555]
[1750875498146,6.9548,143.72,143.7,6.9552]
[1750875498345,6.9548,143.72,143.68,37.5034]
[1750875498548,6.9548,143.72,143.69,6.9554]
[1750875499058,4.42690036,143.73,143.68,35.26]
[1750875499259,40.35342748,143.72,143.67,6.9565]
[1750875499551,6.9556,143.7,143.67,6.9565]
[1750875501153,6.955,143.71,143.68,6.9562]
[1750875501353,35.26,143.72,143.68,6.9562]
[1750875501650,6.9553,143.7,143.68,6.9562]
[1750875502461,6.955,143.71,143.68,6.9562]
[1750875503255,42.2144,143.72,143.66,4.42690036]
[1750875503753,6.9544,143.72,143.66,4.42690036]
[1750875504348,6.954,143.73,143.68,4.42690036]
[1750875505450,6.9535,143.74,143.68,4.42690036]
[1750875505649,6.9535,143.74,143.7,4.42690036]
[1750875506252,6.954,143.73,143.71,6.9547]
[1750875506453,6.954,143.73,143.7,4.42690036]
[1750875506750,6.9541,143.73,143.69,35.26]
[1750875507161,6.9541,143.73,143.7,6.9552]
[1750875508655,6.9535,143.74,143.71,6.9546]
[1750875509359,6.9535,143.74,143.72,6.9542]
[1750875509560,7.123,143.75,143.7,4.42690036]
[1750875509751,7.123,143.75,143.7,6.69930036]
[1750875511359,0.17,143.75,143.7,6.69930036]
[1750875511762,0.17,143.75,143.74,6.9534]
[1750875512761,0.17,143.75,143.7,2.2724]
[1750875512960,7.123,143.75,143.7,2.2724]
[1750875513155,7.123,143.75,143.72,6.9541]
[1750875513553,7.123,143.75,143.73,6.9538]
[1750875514162,7.123,143.75,143.72,6.9541]
[1750875514553,0.17,143.75,143.71,6.9546]
[1750875514759,4.59690036,143.75,143.69,40.0094]
[1750875515468,6.9541,143.73,143.69,40.0094]
[1750875516362,6.9536,143.74,143.71,6.9546]
[1750875517164,6.954,143.73,143.7,6.955]
[1750875519266,6.9543,143.72,143.69,42.2155]
[1750875520357,6.9541,143.73,143.7,6.9552]
[1750875520556,4.59690036,143.75,143.7,6.9552]
[1750875520757,7.61279179,143.74,143.7,6.9552]
[1750875520958,6.9543,143.73,143.7,6.9552]
[1750875521865,7.9243,143.73,143.7,6.9552]
[1750875525677,6.9545,143.72,143.69,42.2155]
[1750875526778,0.97,143.73,143.67,4.42690036]
[1750875526779,5.39690036,143.73,143.67,4.42690036]
[1750875526970,7.61680398,143.72,143.66,35.3]
[1750875527166,6.9556,143.7,143.66,35.3]
[1750875527770,6.9556,143.7,143.67,6.9564]
[1750875527975,6.9556,143.7,143.66,35.3]
[1750875528179,6.955,143.71,143.66,35.3]
[1750875528379,6.955,143.71,143.68,6.956]
[1750875530084,0.17,143.72,143.67,4.42690036]
[1750875530782,6.9551,143.71,143.68,6.956]
[1750875531682,6.9551,143.71,143.69,6.9558]
[1750875532877,7.1245,143.72,143.7,6.9551]
[1750875533781,0.17,143.72,143.7,6.9551]
[1750875534385,7.1243,143.72,143.7,6.9551]
[1750875535478,7.1243,143.72,143.68,35.3]
[1750875536986,0.97,143.71,143.68,35.3]
[1750875537291,0.97,143.71,143.7,6.9551]
[1750875540491,7.62176867,143.76,143.74,6.9532]
[1750875540687,6.9526,143.76,143.74,6.9532]
[1750875540890,254.5282211,143.8,143.75,6.9526]
[1750875541097,18.14285947,143.79,143.73,4.42690036]
[1750875541284,19.21194773,143.78,143.73,4.42690036]
[1750875541594,7.62302898,143.77,143.76,6.9524]
[1750875541792,2.4880911,143.77,143.76,6.9524]
[1750875541996,6.9517,143.78,143.76,6.9524]
[1750875543196,219.2282211,143.8,143.75,4.42690036]
[1750875543492,35.3,143.84,143.77,4.42690036]
[1750875543697,18.12581679,143.83,143.77,4.42690036]
[1750875543896,18.12581679,143.82,143.78,6.9511]
[1750875544088,7.61558526,143.81,143.78,6.9511]
[1750875544290,10.50067888,143.83,143.78,6.9511]